[Event "*** SCC Grand Prix: Titled Tuesday Blitz"]
[Site "Chess.com"]
[Date "2020.07.07"]
[Round "10"]
[White "j2806"]
[Black "Evachess2006"]
[Result "1-0"]
[WhiteElo "2030"]
[BlackElo "1614"]
[TimeControl "180+1"]
[EndTime "11:56:11 PDT"]
[Termination "j2806 won on time"]

1. e4 {[%clk 0:03:00.9]} 1... e5 {[%clk 0:02:56.3]} 2. Nf3 {[%clk 0:03:00.5]}
2... Nc6 {[%clk 0:02:57.2]} 3. Bb5 {[%clk 0:02:59.9]} 3... a6 {[%clk 0:02:45.8]}
4. Ba4 {[%clk 0:02:59.5]} 4... Nf6 {[%clk 0:02:45.1]} 5. d3 {[%clk 0:02:59.2]}
5... b5 {[%clk 0:02:35.2]} 6. Bb3 {[%clk 0:02:56.6]} 6... Be7 {[%clk 0:02:35.3]}
7. O-O {[%clk 0:02:56.4]} 7... O-O {[%clk 0:02:25.9]} 8. c3 {[%clk 0:02:56.1]}
8... d5 {[%clk 0:02:04.1]} 9. exd5 {[%clk 0:02:51.8]} 9... Nxd5 {[%clk 0:02:05]}
10. h3 {[%clk 0:02:51]} 10... Be6 {[%clk 0:01:39]} 11. Re1 {[%clk 0:02:48.9]}
11... f6 {[%clk 0:01:19.4]} 12. d4 {[%clk 0:02:40.7]} 12... Bd6 {[%clk
0:01:06.2]} 13. dxe5 {[%clk 0:02:37.7]} 13... Bxe5 {[%clk 0:01:04.8]} 14. Nxe5
{[%clk 0:02:36.6]} 14... Nxe5 {[%clk 0:01:05.7]} 15. f4 {[%clk 0:02:22.9]} 15...
Nxf4 {[%clk 0:00:23.4]} 16. Bxf4 {[%clk 0:01:53.7]} 16... Bxb3 {[%clk 0:00:13]}
17. Qxb3+ {[%clk 0:01:52.5]} 17... Nc4 {[%clk 0:00:06]} 18. Nd2 {[%clk 0:01:50]}
18... Qd5 {[%clk 0:00:03.7]} 19. Nxc4 {[%clk 0:01:47]} 19... bxc4 {[%clk
0:00:04.1]} 20. Qc2 {[%clk 0:01:46.3]} 20... Qc5+ {[%clk 0:00:02.6]} 21. Be3
{[%clk 0:01:44.8]} 21... Qc6 {[%clk 0:00:03.5]} 22. Rad1 {[%clk 0:01:44.1]}
22... Rae8 {[%clk 0:00:03.8]} 23. Bf2 {[%clk 0:01:42.4]} 23... Re2 {[%clk
0:00:01.2]} 24. Rxe2 {[%clk 0:01:41.9]} 1-0

[Event "*** SCC Grand Prix: Titled Tuesday Blitz"]
[Site "Chess.com"]
[Date "2020.07.07"]
[Round "10"]
[White "Matveev_Vladimir"]
[Black "DenLaz"]
[Result "0-1"]
[WhiteElo "2555"]
[BlackElo "2702"]
[TimeControl "180+1"]
[EndTime "11:56:15 PDT"]
[Termination "DenLaz won by resignation"]

1. d4 {[%clk 0:03:00.9]} 1... d5 {[%clk 0:02:59.2]} 2. c4 {[%clk 0:03:01.2]}
2... c6 {[%clk 0:02:57.8]} 3. Nf3 {[%clk 0:03:01.6]} 3... Nf6 {[%clk 0:02:57.9]}
4. Qc2 {[%clk 0:03:02.1]} 4... g6 {[%clk 0:02:57.2]} 5. Bf4 {[%clk 0:03:01.4]}
5... Bg7 {[%clk 0:02:57.6]} 6. e3 {[%clk 0:02:58.8]} 6... O-O {[%clk 0:02:56.2]}
7. Nc3 {[%clk 0:02:57.7]} 7... Bf5 {[%clk 0:02:56]} 8. Qb3 {[%clk 0:02:57.6]}
8... Qb6 {[%clk 0:02:55.6]} 9. h3 {[%clk 0:02:46.4]} 9... Nbd7 {[%clk
0:02:51.6]} 10. c5 {[%clk 0:02:26.3]} 10... Qxb3 {[%clk 0:02:49.9]} 11. axb3
{[%clk 0:02:27.2]} 11... Ne4 {[%clk 0:02:49.7]} 12. b4 {[%clk 0:02:26.6]} 12...
a6 {[%clk 0:02:48.7]} 13. Be2 {[%clk 0:02:05.4]} 13... Rfe8 {[%clk 0:02:47]} 14.
Ne5 {[%clk 0:01:48.1]} 14... Nxe5 {[%clk 0:02:37.1]} 15. Bxe5 {[%clk 0:01:49]}
15... f6 {[%clk 0:02:33]} 16. Bh2 {[%clk 0:01:46.3]} 16... e5 {[%clk 0:02:33]}
17. Nxe4 {[%clk 0:01:43.1]} 17... Bxe4 {[%clk 0:02:30.9]} 18. dxe5 {[%clk
0:01:39]} 18... Bxg2 {[%clk 0:02:24.2]} 19. exf6 {[%clk 0:01:25.1]} 19... Bxf6
{[%clk 0:02:06.2]} 20. Rg1 {[%clk 0:01:23.3]} 20... Bxh3 {[%clk 0:02:06]} 21.
O-O-O {[%clk 0:01:22.5]} 21... Re4 {[%clk 0:01:56.5]} 22. Bd6 {[%clk 0:01:12.8]}
22... Rxb4 {[%clk 0:01:54.5]} 23. Rd2 {[%clk 0:01:13.2]} 23... a5 {[%clk
0:01:51.5]} 24. Rh1 {[%clk 0:01:08.4]} 24... Bf5 {[%clk 0:01:50.7]} 25. Bd3
{[%clk 0:00:42.7]} 25... Bxd3 {[%clk 0:01:45]} 26. Rxd3 {[%clk 0:00:43.6]} 26...
Rxb2 {[%clk 0:01:45]} 27. Be7 {[%clk 0:00:42.4]} 27... Bg7 {[%clk 0:01:40.7]}
28. f4 {[%clk 0:00:40.6]} 28... Ra2 {[%clk 0:01:38.3]} 29. Rh3 {[%clk
0:00:38.2]} 29... a4 {[%clk 0:01:36.8]} 30. Rg3 {[%clk 0:00:32.6]} 30... Kf7
{[%clk 0:01:33.3]} 31. Bd6 {[%clk 0:00:31.2]} 31... a3 {[%clk 0:01:33.2]} 0-1

[Event "*** SCC Grand Prix: Titled Tuesday Blitz"]
[Site "Chess.com"]
[Date "2020.07.07"]
[Round "10"]
[White "tan275"]
[Black "NowInChess"]
[Result "1-0"]
[WhiteElo "2270"]
[BlackElo "2134"]
[TimeControl "180+1"]
[EndTime "11:56:18 PDT"]
[Termination "tan275 won by resignation"]

1. d4 {[%clk 0:03:00.9]} 1... e6 {[%clk 0:02:58.6]} 2. c4 {[%clk 0:03:01.8]}
2... Nf6 {[%clk 0:02:58.7]} 3. Nc3 {[%clk 0:03:02]} 3... Bb4 {[%clk 0:02:59.2]}
4. Nf3 {[%clk 0:03:01.3]} 4... Nc6 {[%clk 0:02:58.8]} 5. e3 {[%clk 0:02:57]}
5... d6 {[%clk 0:02:56.7]} 6. Bd3 {[%clk 0:02:57.3]} 6... Bxc3+ {[%clk
0:02:55.4]} 7. bxc3 {[%clk 0:02:56.4]} 7... O-O {[%clk 0:02:55.9]} 8. e4 {[%clk
0:02:54.4]} 8... e5 {[%clk 0:02:55.9]} 9. d5 {[%clk 0:02:51]} 9... Na5 {[%clk
0:02:49.2]} 10. O-O {[%clk 0:02:49.6]} 10... b6 {[%clk 0:02:46.9]} 11. Bg5
{[%clk 0:02:38.4]} 11... h6 {[%clk 0:02:45.9]} 12. Bh4 {[%clk 0:02:37.6]} 12...
Ba6 {[%clk 0:02:45.6]} 13. Qe2 {[%clk 0:02:31.9]} 13... g5 {[%clk 0:02:44]} 14.
Bg3 {[%clk 0:02:30]} 14... Nh5 {[%clk 0:02:43.6]} 15. Nd2 {[%clk 0:02:00.4]}
15... Nf4 {[%clk 0:02:39.2]} 16. Bxf4 {[%clk 0:01:52.8]} 16... exf4 {[%clk
0:02:38.2]} 17. e5 {[%clk 0:01:47.2]} 17... dxe5 {[%clk 0:02:35.2]} 18. Qxe5
{[%clk 0:01:38.3]} 18... Bc8 {[%clk 0:01:32.2]} 19. d6 {[%clk 0:01:00]} 19... f6
{[%clk 0:00:59.3]} 20. Qe4 {[%clk 0:00:55.9]} 20... f5 {[%clk 0:00:52.8]} 21.
Qxa8 {[%clk 0:00:52.9]} 21... Qxd6 {[%clk 0:00:48.3]} 22. Qd5+ {[%clk
0:00:51.7]} 1-0

[Event "*** SCC Grand Prix: Titled Tuesday Blitz"]
[Site "Chess.com"]
[Date "2020.07.07"]
[Round "10"]
[White "nocnypako"]
[Black "GGfrances"]
[Result "0-1"]
[WhiteElo "2569"]
[BlackElo "2380"]
[TimeControl "180+1"]
[EndTime "11:56:20 PDT"]
[Termination "GGfrances won by resignation"]

1. d4 {[%clk 0:02:31.8]} 1... Nf6 {[%clk 0:02:49.4]} 2. c4 {[%clk 0:02:15.1]}
2... g6 {[%clk 0:02:48.9]} 3. Nc3 {[%clk 0:02:14.2]} 3... Bg7 {[%clk 0:02:48.3]}
4. e4 {[%clk 0:02:12.2]} 4... d6 {[%clk 0:02:48.2]} 5. Nf3 {[%clk 0:02:11.5]}
5... O-O {[%clk 0:02:47.5]} 6. Be2 {[%clk 0:02:11.3]} 6... e5 {[%clk 0:02:46.1]}
7. O-O {[%clk 0:02:11.3]} 7... Nc6 {[%clk 0:02:39.8]} 8. d5 {[%clk 0:02:10.9]}
8... Ne7 {[%clk 0:02:39.7]} 9. Ne1 {[%clk 0:02:10.6]} 9... Nd7 {[%clk
0:02:36.4]} 10. Be3 {[%clk 0:02:10.1]} 10... f5 {[%clk 0:02:34.1]} 11. f3 {[%clk
0:02:10.2]} 11... f4 {[%clk 0:02:32.3]} 12. Bf2 {[%clk 0:02:10.2]} 12... g5
{[%clk 0:02:28.6]} 13. b4 {[%clk 0:02:09.3]} 13... Nf6 {[%clk 0:02:24.3]} 14. c5
{[%clk 0:02:08.3]} 14... Ng6 {[%clk 0:02:22.1]} 15. c6 {[%clk 0:02:02.2]} 15...
b6 {[%clk 0:02:18.7]} 16. a4 {[%clk 0:02:01.6]} 16... a6 {[%clk 0:02:16.3]} 17.
g4 {[%clk 0:01:38.3]} 17... h5 {[%clk 0:02:08.5]} 18. h3 {[%clk 0:01:36.5]}
18... Kf7 {[%clk 0:02:03.3]} 19. Kg2 {[%clk 0:01:35.5]} 19... Nh4+ {[%clk
0:01:58.3]} 20. Bxh4 {[%clk 0:01:23.6]} 20... gxh4 {[%clk 0:01:59.2]} 21. Nd3
{[%clk 0:01:23]} 21... hxg4 {[%clk 0:01:55.3]} 22. hxg4 {[%clk 0:01:23.9]} 22...
h3+ {[%clk 0:01:51.7]} 23. Kxh3 {[%clk 0:01:20.6]} 23... Rh8+ {[%clk 0:01:28.8]}
24. Kg2 {[%clk 0:01:19.3]} 24... Nxg4 {[%clk 0:01:27.7]} 25. fxg4 {[%clk
0:01:08.8]} 25... Qh4 {[%clk 0:01:15.9]} 26. Nxf4 {[%clk 0:01:06.8]} 26... Qh2+
{[%clk 0:01:12]} 27. Kf3 {[%clk 0:01:05.4]} 27... exf4 {[%clk 0:01:07.4]} 28. e5
{[%clk 0:00:55.7]} 28... Rh3+ {[%clk 0:01:02.8]} 29. Ke4 {[%clk 0:00:53.5]}
29... Re3+ {[%clk 0:00:57.8]} 0-1

[Event "*** SCC Grand Prix: Titled Tuesday Blitz"]
[Site "Chess.com"]
[Date "2020.07.07"]
[Round "10"]
[White "Varshi_chess"]
[Black "IMKarimIsmael"]
[Result "1-0"]
[WhiteElo "2309"]
[BlackElo "2394"]
[TimeControl "180+1"]
[EndTime "11:56:21 PDT"]
[Termination "Varshi_chess won by resignation"]

1. e4 {[%clk 0:03:00.9]} 1... e5 {[%clk 0:02:59.5]} 2. Nf3 {[%clk 0:02:57.2]}
2... Nf6 {[%clk 0:02:59.8]} 3. Nxe5 {[%clk 0:02:50.2]} 3... Nxe4 {[%clk
0:02:59.1]} 4. Qe2 {[%clk 0:02:46.8]} 4... Qe7 {[%clk 0:02:59.6]} 5. Qxe4 {[%clk
0:02:44.6]} 5... d6 {[%clk 0:03:00.1]} 6. d4 {[%clk 0:02:42.3]} 6... dxe5 {[%clk
0:03:00.3]} 7. dxe5 {[%clk 0:02:38.2]} 7... Nc6 {[%clk 0:02:59.7]} 8. Bb5 {[%clk
0:02:26.2]} 8... Bd7 {[%clk 0:02:58.9]} 9. O-O {[%clk 0:02:13.3]} 9... O-O-O
{[%clk 0:02:55.7]} 10. Bf4 {[%clk 0:02:01.8]} 10... Nxe5 {[%clk 0:02:27.3]} 11.
Qxe5 {[%clk 0:01:59.5]} 11... Bxb5 {[%clk 0:01:49.4]} 12. Qxb5 {[%clk
0:01:58.6]} 12... h5 {[%clk 0:01:39.2]} 13. Nc3 {[%clk 0:01:57.1]} 13... a6
{[%clk 0:01:31.6]} 14. Qf5+ {[%clk 0:01:56.2]} 14... Qd7 {[%clk 0:01:27.5]} 15.
Qxd7+ {[%clk 0:01:55.3]} 15... Rxd7 {[%clk 0:01:28.4]} 16. Rad1 {[%clk
0:01:55.3]} 16... Bb4 {[%clk 0:01:24.6]} 17. Rxd7 {[%clk 0:01:53.9]} 17... Kxd7
{[%clk 0:01:25.5]} 18. Rd1+ {[%clk 0:01:53.8]} 18... Kc6 {[%clk 0:01:19.5]} 19.
g3 {[%clk 0:01:53.1]} 19... Re8 {[%clk 0:01:07.6]} 20. Kf1 {[%clk 0:01:47.5]}
20... f6 {[%clk 0:00:38]} 21. h4 {[%clk 0:01:45.4]} 21... Bxc3 {[%clk
0:00:26.8]} 22. bxc3 {[%clk 0:01:44.1]} 22... Re4 {[%clk 0:00:27.7]} 23. Rd4
{[%clk 0:01:41.6]} 23... Re6 {[%clk 0:00:23.9]} 24. Rc4+ {[%clk 0:01:40.9]}
24... Kb5 {[%clk 0:00:18.6]} 25. Rxc7 {[%clk 0:01:40.3]} 1-0

[Event "*** SCC Grand Prix: Titled Tuesday Blitz"]
[Site "Chess.com"]
[Date "2020.07.07"]
[Round "10"]
[White "Chernobay_Artem"]
[Black "Korona_91"]
[Result "1-0"]
[WhiteElo "2630"]
[BlackElo "2483"]
[TimeControl "180+1"]
[EndTime "11:56:23 PDT"]
[Termination "Chernobay_Artem won by resignation"]

1. d4 {[%clk 0:03:00.9]} 1... g6 {[%clk 0:03:00]} 2. c4 {[%clk 0:02:59.5]} 2...
Bg7 {[%clk 0:03:00.2]} 3. Nc3 {[%clk 0:02:58.7]} 3... d6 {[%clk 0:03:00.5]} 4.
e4 {[%clk 0:02:57.6]} 4... e5 {[%clk 0:03:00.5]} 5. Nf3 {[%clk 0:02:53.5]} 5...
exd4 {[%clk 0:02:54]} 6. Nxd4 {[%clk 0:02:54.4]} 6... Nc6 {[%clk 0:02:50]} 7.
Be3 {[%clk 0:02:53.3]} 7... Nf6 {[%clk 0:02:45.5]} 8. Be2 {[%clk 0:02:51.5]}
8... O-O {[%clk 0:02:45]} 9. O-O {[%clk 0:02:51]} 9... Re8 {[%clk 0:02:42.4]}
10. f3 {[%clk 0:02:46.8]} 10... Bd7 {[%clk 0:02:42.3]} 11. Qd2 {[%clk
0:02:44.8]} 11... a5 {[%clk 0:02:41.5]} 12. Rad1 {[%clk 0:02:43.7]} 12... Nh5
{[%clk 0:02:36.4]} 13. f4 {[%clk 0:02:40.8]} 13... Nf6 {[%clk 0:02:32.9]} 14.
Bf3 {[%clk 0:02:40.4]} 14... Nxd4 {[%clk 0:02:32.4]} 15. Bxd4 {[%clk 0:02:39.4]}
15... Bc6 {[%clk 0:02:32.8]} 16. Rde1 {[%clk 0:02:37.3]} 16... Qd7 {[%clk
0:02:24.2]} 17. Nd5 {[%clk 0:02:19]} 17... Bxd5 {[%clk 0:02:17.4]} 18. cxd5
{[%clk 0:02:18.2]} 18... Re7 {[%clk 0:02:11]} 19. e5 {[%clk 0:01:51.7]} 19...
dxe5 {[%clk 0:02:09.3]} 20. fxe5 {[%clk 0:01:51.6]} 20... Nxd5 {[%clk
0:01:41.8]} 21. Bc5 {[%clk 0:01:51.2]} 21... c6 {[%clk 0:01:33.7]} 22. Bxe7
{[%clk 0:01:45.7]} 22... Qxe7 {[%clk 0:01:34.6]} 23. Bxd5 {[%clk 0:01:44.5]}
23... cxd5 {[%clk 0:01:35.5]} 24. Qxd5 {[%clk 0:01:44]} 24... Rd8 {[%clk
0:01:30.8]} 25. Rxf7 {[%clk 0:01:41.6]} 25... Rxd5 {[%clk 0:01:23.7]} 26. Rxe7
{[%clk 0:01:41]} 26... Kf8 {[%clk 0:01:19.1]} 27. Rxb7 {[%clk 0:01:40.8]} 27...
Bxe5 {[%clk 0:01:19.5]} 28. Re2 {[%clk 0:01:29.1]} 28... Bd4+ {[%clk 0:01:14.5]}
29. Kf1 {[%clk 0:01:27.6]} 29... Rc5 {[%clk 0:01:10.9]} 30. Rd2 {[%clk 0:01:26]}
30... Bf6 {[%clk 0:01:06.1]} 31. Rd6 {[%clk 0:01:23.6]} 31... Rf5+ {[%clk
0:01:02]} 32. Ke2 {[%clk 0:01:23.3]} 32... h5 {[%clk 0:00:57.8]} 33. Rc6 {[%clk
0:01:20.9]} 33... Ke8 {[%clk 0:00:56.3]} 34. Rc8+ {[%clk 0:01:18.3]} 34... Bd8
{[%clk 0:00:56.7]} 35. Rbb8 {[%clk 0:01:18.7]} 35... Re5+ {[%clk 0:00:56.5]} 36.
Kd3 {[%clk 0:01:18.1]} 36... Rd5+ {[%clk 0:00:57.2]} 37. Kc4 {[%clk 0:01:18.4]}
37... Rd1 {[%clk 0:00:56]} 38. Rxd8+ {[%clk 0:01:18.6]} 38... Rxd8 {[%clk
0:00:54.5]} 39. Rxd8+ {[%clk 0:01:19.5]} 39... Kxd8 {[%clk 0:00:55.3]} 40. Kb5
{[%clk 0:01:19.4]} 1-0

[Event "*** SCC Grand Prix: Titled Tuesday Blitz"]
[Site "Chess.com"]
[Date "2020.07.07"]
[Round "10"]
[White "ErikBlomqvist"]
[Black "vpsetter"]
[Result "0-1"]
[WhiteElo "2508"]
[BlackElo "2644"]
[TimeControl "180+1"]
[EndTime "11:56:25 PDT"]
[Termination "vpsetter won by resignation"]

1. e4 {[%clk 0:03:00.9]} 1... e5 {[%clk 0:02:58.5]} 2. Nf3 {[%clk 0:02:59.9]}
2... Nc6 {[%clk 0:02:59.1]} 3. Bb5 {[%clk 0:03:00.4]} 3... Nf6 {[%clk 0:02:59]}
4. O-O {[%clk 0:03:00.5]} 4... Nxe4 {[%clk 0:02:58.9]} 5. Re1 {[%clk 0:03:01.1]}
5... Nd6 {[%clk 0:02:58.8]} 6. Nxe5 {[%clk 0:03:01.7]} 6... Nxe5 {[%clk
0:02:59.7]} 7. Rxe5+ {[%clk 0:03:02.6]} 7... Be7 {[%clk 0:03:00.4]} 8. Bf1
{[%clk 0:03:01.9]} 8... O-O {[%clk 0:03:00.6]} 9. d4 {[%clk 0:03:02.1]} 9... Bf6
{[%clk 0:03:00.8]} 10. Re1 {[%clk 0:03:02]} 10... Re8 {[%clk 0:02:58.1]} 11. Bf4
{[%clk 0:03:02]} 11... Rxe1 {[%clk 0:02:55.4]} 12. Qxe1 {[%clk 0:03:02.9]} 12...
Bxd4 {[%clk 0:02:43.6]} 13. Bxd6 {[%clk 0:03:02.2]} 13... cxd6 {[%clk
0:02:43.7]} 14. c3 {[%clk 0:03:00.5]} 14... Bf6 {[%clk 0:02:41]} 15. Na3 {[%clk
0:02:59]} 15... d5 {[%clk 0:02:37.5]} 16. Nb5 {[%clk 0:02:57.2]} 16... d4 {[%clk
0:02:37.4]} 17. Nc7 {[%clk 0:02:17.5]} 17... Rb8 {[%clk 0:02:33.6]} 18. Nd5
{[%clk 0:02:17.5]} 18... dxc3 {[%clk 0:02:27]} 19. Nxf6+ {[%clk 0:02:16.5]}
19... gxf6 {[%clk 0:02:26.9]} 20. Qxc3 {[%clk 0:02:16.1]} 20... d6 {[%clk
0:02:27.5]} 21. Rd1 {[%clk 0:02:01.9]} 21... Be6 {[%clk 0:02:26.7]} 22. Rd3
{[%clk 0:01:49.1]} 22... Bf5 {[%clk 0:02:03.2]} 23. Rf3 {[%clk 0:01:41]} 23...
Bg6 {[%clk 0:02:01.8]} 24. Rxf6 {[%clk 0:01:29.3]} 24... d5 {[%clk 0:01:59.9]}
25. Qe5 {[%clk 0:01:22.5]} 25... Rc8 {[%clk 0:01:54.1]} 26. Rd6 {[%clk
0:01:18.5]} 26... Qh4 {[%clk 0:01:49.5]} 27. Qxd5 {[%clk 0:01:10.8]} 27... Rc2
{[%clk 0:01:48.9]} 28. Rd8+ {[%clk 0:00:58.5]} 28... Kg7 {[%clk 0:01:48.7]} 29.
Qe5+ {[%clk 0:00:52.8]} 29... Kh6 {[%clk 0:01:46.7]} 30. Qe3+ {[%clk 0:00:44.3]}
30... Qg5 {[%clk 0:01:45.5]} 31. f4 {[%clk 0:00:28.5]} 31... Qxd8 {[%clk
0:01:42.7]} 0-1

[Event "*** SCC Grand Prix: Titled Tuesday Blitz"]
[Site "Chess.com"]
[Date "2020.07.07"]
[Round "10"]
[White "Ze-Pequeno"]
[Black "Blagorod"]
[Result "0-1"]
[WhiteElo "2219"]
[BlackElo "2114"]
[TimeControl "180+1"]
[EndTime "11:56:25 PDT"]
[Termination "Blagorod won by resignation"]

1. e4 {[%clk 0:02:59.1]} 1... e5 {[%clk 0:02:59.6]} 2. Nf3 {[%clk 0:02:57.8]}
2... Nf6 {[%clk 0:03:00.2]} 3. Nxe5 {[%clk 0:02:56.6]} 3... d6 {[%clk
0:03:00.3]} 4. Nf3 {[%clk 0:02:56.3]} 4... Nxe4 {[%clk 0:03:00.7]} 5. d4 {[%clk
0:02:56.7]} 5... d5 {[%clk 0:03:00.5]} 6. Bd3 {[%clk 0:02:56.4]} 6... Nc6 {[%clk
0:03:00.4]} 7. O-O {[%clk 0:02:55.1]} 7... Be7 {[%clk 0:03:00.9]} 8. c4 {[%clk
0:02:54.6]} 8... Nb4 {[%clk 0:02:59.3]} 9. Be2 {[%clk 0:02:53.9]} 9... O-O
{[%clk 0:02:58.8]} 10. Nc3 {[%clk 0:02:53]} 10... Nxc3 {[%clk 0:02:50.3]} 11.
bxc3 {[%clk 0:02:52.2]} 11... Nc6 {[%clk 0:02:50.8]} 12. Re1 {[%clk 0:02:46.1]}
12... Bf5 {[%clk 0:02:39.6]} 13. Nd2 {[%clk 0:02:30.4]} 13... Bf6 {[%clk
0:02:33.6]} 14. Bf3 {[%clk 0:02:21.8]} 14... Ne7 {[%clk 0:02:09]} 15. Ba3 {[%clk
0:02:15]} 15... Re8 {[%clk 0:02:05.3]} 16. Bxe7 {[%clk 0:02:10.3]} 16... Rxe7
{[%clk 0:02:02.3]} 17. cxd5 {[%clk 0:02:06.6]} 17... Rxe1+ {[%clk 0:01:57.9]}
18. Qxe1 {[%clk 0:02:06.1]} 18... Qd7 {[%clk 0:01:57.9]} 19. Nc4 {[%clk
0:01:59.8]} 19... Re8 {[%clk 0:01:52.3]} 20. Qd2 {[%clk 0:01:59.4]} 20... Qa4
{[%clk 0:01:46.1]} 21. Ne3 {[%clk 0:01:54.6]} 21... Bg6 {[%clk 0:01:44.5]} 22.
Qd1 {[%clk 0:01:49.4]} 22... Qa5 {[%clk 0:01:32.4]} 23. Qb3 {[%clk 0:01:47.5]}
23... Bg5 {[%clk 0:01:29.5]} 24. Nc4 {[%clk 0:01:45.6]} 24... Qa6 {[%clk
0:01:24.7]} 25. Ne5 {[%clk 0:01:44.8]} 25... Bf5 {[%clk 0:01:16.9]} 26. a4
{[%clk 0:01:42.2]} 26... h6 {[%clk 0:01:05.6]} 27. Qb5 {[%clk 0:01:14.4]} 27...
Qxb5 {[%clk 0:00:55.5]} 28. axb5 {[%clk 0:01:14.5]} 28... Bf4 {[%clk 0:00:54.8]}
29. Nc4 {[%clk 0:01:06]} 29... Bd3 {[%clk 0:00:53]} 30. Na3 {[%clk 0:01:05.3]}
30... Bd2 {[%clk 0:00:50.6]} 0-1

[Event "*** SCC Grand Prix: Titled Tuesday Blitz"]
[Site "Chess.com"]
[Date "2020.07.07"]
[Round "10"]
[White "dolynachess"]
[Black "BogdanDeac"]
[Result "0-1"]
[WhiteElo "2469"]
[BlackElo "2797"]
[TimeControl "180+1"]
[EndTime "11:56:28 PDT"]
[Termination "BogdanDeac won by resignation"]

1. d4 {[%clk 0:03:00.9]} 1... d5 {[%clk 0:02:59.3]} 2. c4 {[%clk 0:02:59.8]}
2... e6 {[%clk 0:02:59.2]} 3. Nf3 {[%clk 0:03:00.4]} 3... Nf6 {[%clk 0:02:58.9]}
4. g3 {[%clk 0:03:00.1]} 4... Be7 {[%clk 0:02:58.1]} 5. Bg2 {[%clk 0:03:00.4]}
5... O-O {[%clk 0:02:57.9]} 6. O-O {[%clk 0:03:01.2]} 6... dxc4 {[%clk
0:02:57.4]} 7. Ne5 {[%clk 0:03:01.7]} 7... Nc6 {[%clk 0:02:57]} 8. Nxc6 {[%clk
0:03:01.8]} 8... bxc6 {[%clk 0:02:56.7]} 9. Na3 {[%clk 0:03:02.7]} 9... Bxa3
{[%clk 0:02:52.9]} 10. bxa3 {[%clk 0:03:03.6]} 10... Ba6 {[%clk 0:02:49.6]} 11.
Bxc6 {[%clk 0:03:02.6]} 11... Rb8 {[%clk 0:02:47.7]} 12. Bf3 {[%clk 0:03:03.5]}
12... Qd7 {[%clk 0:02:33.5]} 13. Bg5 {[%clk 0:02:47]} 13... Rfd8 {[%clk
0:02:26.3]} 14. e3 {[%clk 0:02:36]} 14... c5 {[%clk 0:02:15.7]} 15. dxc5 {[%clk
0:02:14.8]} 15... Qb5 {[%clk 0:02:14.4]} 16. Qc2 {[%clk 0:02:01.9]} 16... Qxc5
{[%clk 0:02:13.5]} 17. Bxf6 {[%clk 0:02:00.7]} 17... gxf6 {[%clk 0:02:14.4]} 18.
Qc3 {[%clk 0:01:52.2]} 18... Qe5 {[%clk 0:02:10]} 19. Rfc1 {[%clk 0:01:44.7]}
19... Rb2 {[%clk 0:02:03.1]} 20. Qxe5 {[%clk 0:00:31.3]} 20... fxe5 {[%clk
0:02:01.1]} 21. Rc3 {[%clk 0:00:32.2]} 21... Rdd2 {[%clk 0:01:59]} 22. Rf1
{[%clk 0:00:32.5]} 22... Rxa2 {[%clk 0:01:58.4]} 23. Bc6 {[%clk 0:00:30.8]}
23... Rd3 {[%clk 0:01:54.5]} 24. Rfc1 {[%clk 0:00:29.6]} 24... Rxa3 {[%clk
0:01:53.7]} 25. Rxa3 {[%clk 0:00:23.5]} 25... Rxa3 {[%clk 0:01:51.7]} 26. Rb1
{[%clk 0:00:24.4]} 26... c3 {[%clk 0:01:51.3]} 27. Be4 {[%clk 0:00:19.4]} 27...
f5 {[%clk 0:01:50.6]} 28. Bc2 {[%clk 0:00:19.1]} 28... e4 {[%clk 0:01:45.3]} 29.
Rb8+ {[%clk 0:00:15.3]} 29... Kg7 {[%clk 0:01:45.1]} 30. Ra8 {[%clk 0:00:16.2]}
30... Bd3 {[%clk 0:01:44.4]} 0-1

[Event "*** SCC Grand Prix: Titled Tuesday Blitz"]
[Site "Chess.com"]
[Date "2020.07.07"]
[Round "10"]
[White "Na_binci"]
[Black "TwentyHourADay"]
[Result "0-1"]
[WhiteElo "1983"]
[BlackElo "2325"]
[TimeControl "180+1"]
[EndTime "11:56:31 PDT"]
[Termination "TwentyHourADay won on time"]

1. d4 {[%clk 0:03:00.9]} 1... d6 {[%clk 0:02:57.9]} 2. Nf3 {[%clk 0:03:00]} 2...
g6 {[%clk 0:02:57.4]} 3. c4 {[%clk 0:02:59.9]} 3... Bg7 {[%clk 0:02:57.7]} 4.
Nc3 {[%clk 0:03:00.3]} 4... Nf6 {[%clk 0:02:57.9]} 5. e4 {[%clk 0:03:00.1]} 5...
O-O {[%clk 0:02:58]} 6. Be2 {[%clk 0:03:00.5]} 6... Nbd7 {[%clk 0:02:58.4]} 7.
O-O {[%clk 0:03:00.2]} 7... e5 {[%clk 0:02:58.5]} 8. d5 {[%clk 0:03:00.5]} 8...
Nc5 {[%clk 0:02:58.5]} 9. Qc2 {[%clk 0:03:00.9]} 9... a5 {[%clk 0:02:58.1]} 10.
Ne1 {[%clk 0:03:00.5]} 10... h6 {[%clk 0:02:58.1]} 11. b3 {[%clk 0:03:00]} 11...
Nh7 {[%clk 0:02:58]} 12. a3 {[%clk 0:02:59.7]} 12... f5 {[%clk 0:02:57.6]} 13.
Rb1 {[%clk 0:02:57.8]} 13... Ng5 {[%clk 0:02:55.6]} 14. Bxg5 {[%clk 0:02:51.6]}
14... Qxg5 {[%clk 0:02:53.9]} 15. b4 {[%clk 0:02:49.2]} 15... Nxe4 {[%clk
0:02:52.6]} 16. Nxe4 {[%clk 0:02:46.9]} 16... fxe4 {[%clk 0:02:52.9]} 17. c5
{[%clk 0:02:19.3]} 17... axb4 {[%clk 0:02:43.1]} 18. axb4 {[%clk 0:02:18]} 18...
e3 {[%clk 0:02:37.9]} 19. f3 {[%clk 0:02:10.7]} 19... e4 {[%clk 0:02:21.8]} 20.
cxd6 {[%clk 0:02:01.7]} 20... cxd6 {[%clk 0:02:15.8]} 21. fxe4 {[%clk
0:01:46.8]} 21... Rxf1+ {[%clk 0:02:12.9]} 22. Bxf1 {[%clk 0:01:46.6]} 22... Be5
{[%clk 0:02:08]} 23. Nf3 {[%clk 0:01:45.9]} 23... Qf4 {[%clk 0:02:03.9]} 24.
Nxe5 {[%clk 0:01:10.4]} 24... dxe5 {[%clk 0:01:59.1]} 25. Be2 {[%clk 0:01:06.1]}
25... Qf2+ {[%clk 0:01:57]} 26. Kh1 {[%clk 0:01:03.2]} 26... Bg4 {[%clk
0:01:57.1]} 27. Bd3 {[%clk 0:00:43.6]} 27... e2 {[%clk 0:01:54.2]} 28. Bxe2
{[%clk 0:00:37]} 28... Bxe2 {[%clk 0:01:53.5]} 29. d6 {[%clk 0:00:25.7]} 29...
Rf8 {[%clk 0:01:50.7]} 30. h3 {[%clk 0:00:23.1]} 30... Rf3 {[%clk 0:01:43.5]}
31. Rb3 {[%clk 0:00:09.6]} 31... Qe1+ {[%clk 0:01:35]} 32. Kh2 {[%clk
0:00:08.6]} 32... Qg3+ {[%clk 0:01:35]} 0-1